Cogmind - Beta 13 @@@ ROGUE MODE // 2024.04.10 @ 15:38:57 Player: Zaros426 Result: Destroyed by KJ-GB8(R) with Subdweller Machine Gun Performance ------------- Evolutions (0) 0 Regions Visited (3) 600 Robots Destroyed (24) 120 Value Destroyed (374) 374 Prototype IDs (0) 0 Alien Tech Used (0) 0 Bonus (60) 60 TOTAL SCORE: 1154 Bonus ------- Follower Combat Kills 60 Cogmind --------- Core Integrity 0/250 Matter 210/300 Energy 100/100 System Corruption 0% Temperature Cool (6) Movement Rolling (125) Ox3 Location -10/Subcaves Parts ------- > --- POWER (1) -------- (None) > --- PROPULSION (2) --- Wheel > --- UTILITY (2) ------ Large Storage Unit Signal Interpreter > --- WEAPON (2) ------- Subdweller Shrapnel Launcher Makeshift Axe > --- INVENTORY (15) --- Ion Engine Light Nuclear Core Spiked Treads Wheel Wheel Wheel Improved Heat Sink Medium Storage Unit Sensor Array Improved Terrain Scanner Terrain Scan Processor Assault Rifle Battle Rifle Battle Rifle Makeshift Shrapnel Gun Peak State ------------ > --- POWER ------------ Ion Engine > --- PROPULSION ------- Wheel Wheel > --- UTILITY ---------- Large Storage Unit Signal Interpreter > --- WEAPON ----------- Makeshift Shrapnel Gun Makeshift Axe > --- INVENTORY -------- Ion Engine Light Nuclear Core Wheel Wheel Wheel Improved Heat Sink Medium Storage Unit Sensor Array Improved Terrain Scanner Terrain Scan Processor Assault Rifle Battle Rifle Battle Rifle [Rating: 15] Favorites ----------- Power Ion Engine Engine Ion Engine Propulsion Wheel Wheel Wheel Utility Large Storage Unit Device Improved Terrain Scanner Storage Large Storage Unit Processor Signal Interpreter Weapon Assault Rifle Ballistic Gun Assault Rifle Launcher Rocket Launcher Slashing Weapon Makeshift Axe Build | -11 -10 -10 -10 ------- Run | Yrd Mat Min Sub Slots Evolved . | . . . . Power . | . . . . Propulsion . | . . . . Utility . | . . . . Weapon . | . . . . Parts Attached 22 | 9 4 1 8 Power 2 | 1 . . 1 Engine 2 | 1 . . 1 Core . | . . . . Reactor . | . . . . Propulsion 8 | 4 . 1 3 Treads . | . . . . Leg . | . . . . Wheel 8 | 4 . 1 3 Hover . | . . . . Flight . | . . . . Utility 5 | 2 3 . . Device 1 | 1 . . . Storage 3 | 1 2 . . Processor 1 | . 1 . . Hackware . | . . . . Protection . | . . . . Artifact . | . . . . Weapon 7 | 2 1 . 4 Energy Gun . | . . . . Energy Cannon . | . . . . Ballistic Gun 4 | 2 1 . 1 Ballistic Cannon . | . . . . Launcher 2 | . . . 2 Special Weapon . | . . . . Impact Weapon . | . . . . Slashing Weapon 1 | . . . 1 Piercing Weapon . | . . . . Special Melee Weapon . | . . . . Unidentified Prototypes . | . . . . Parts Lost 7 | . . . 7 Power 1 | . . . 1 Propulsion 4 | . . . 4 Utility . | . . . . Weapon 2 | . . . 2 Highest Loss Streak 2 | . . . 2 To Critical Strikes . | . . . . Average Slot Usage (%) 99 | . 100 100 99 Engine 14 | . 14 14 14 Wheel 27 | . 28 28 27 Device 1 | . 11 . . Storage 14 | . 14 14 14 Processor 12 | . 2 14 14 Ballistic Gun 19 | . 28 28 8 Launcher 4 | . . . 10 Slashing Weapon 3 | . . . 8 Naked Turns . | . . . . Heaviest Build 36 | 14 30 29 36 Greatest Support 26 | 26 20 20 20 Greatest Overweight (x) 3 | . 1 1 3 Average Overweight (x) . | . . 1 1 Largest Inventory Capacity 15 | 8 15 15 15 Average Capacity 14 | 7 13 15 15 Most Carried 15 | 2 6 15 15 Average Carried 10 | . 4 10 14 Final Capacity 15 | 8 15 15 15 Final Carried 15 | 1 6 15 15 Class Distribution -------------------- 100% | Mutant Dominant Class ---------------- Mutant | -10/Materials Mutant | -10/Mines Mutant | -10/Subcaves Resources | -11 -10 -10 -10 ----------- Run | Yrd Mat Min Sub Matter Collected 672 | 319 135 70 148 Remotely . | . . . . Salvage Created 560 | 176 87 145 152 Parts 56 | 12 9 20 15 Haulers Intercepted . | . . . . Recyclers Shooed . | . . . . Parts Field Recycled . | . . . . Retrieved Matter . | . . . . Parts Self-Destructed 10 | . . . 10 Prevented . | . . . . Kills | -11 -10 -10 -10 ------- Run | Yrd Mat Min Sub Combat Hostiles Destroyed 7 | . 1 . 6 Guns 1 | . 1 . . AOE 6 | . . . 6 Classes Destroyed 7 | 3 2 1 1 Worker 5 | 2 1 2 . Builder 3 | . . 3 . Tunneler 6 | 4 . 2 . Recycler 1 | 1 . . . Watcher 2 | . 2 . . Grunt 1 | . 1 . . Subdweller 6 | . . . 6 Best Kill Streak 7 | 7 2 3 5 Combat Bots Only 5 | . 1 . 5 Max Kills in Single Turn 2 | 1 1 2 2 Gunslinging . | . . . . Exploded 2 | . . . 2 Melee . | . . . . Uniques/NPCs Destroyed . | . . . . Combat | -11 -10 -10 -10 -------- Run | Yrd Mat Min Sub Hostile Shots Fired 60 | . 4 . 56 Missed 19 | . 1 . 18 Damage Taken 920 | . 32 . 888 Core 265 | . 12 . 253 Absorbed by Shields . | . . . . Core Remaining (%) 100 | 100 . . . Volleys Fired 54 | 18 9 13 14 Largest 2 | 2 2 2 2 Hottest 53 | 40 40 40 53 Shots Fired 95 | 36 18 26 15 Gun 81 | 36 18 26 1 Cannon . | . . . . Launcher 14 | . . . 14 Special . | . . . . Kinetic 83 | 36 18 26 3 Thermal . | . . . . Explosive 12 | . . . 12 Electromagnetic . | . . . . Robot Hit Streak 9 | 9 8 8 4 Robot Miss Streak 3 | 2 3 3 1 Penetration Max . | . . . . Secondary Targets . | . . . . Shots Hit Robots 54 | 23 10 15 6 Core Hits 30 | 9 5 7 9 Critical Kills . | . . . . Critical Parts Destroyed . | . . . . Critical Strikes . | . . . . Melee Attacks 8 | . . . 8 Impact . | . . . . Slashing 8 | . . . 8 Piercing . | . . . . Sneak Attacks . | . . . . Combat Hostiles . | . . . . Follow-up Attacks . | . . . . Damage Inflicted 1210 | 260 128 205 617 Guns 608 | 260 128 205 15 Cannons . | . . . . Explosions 602 | . . . 602 Melee . | . . . . Ramming . | . . . . Kinetic 697 | 260 128 205 104 Thermal . | . . . . Explosive 513 | . . . 513 Electromagnetic . | . . . . Impact . | . . . . Slashing . | . . . . Piercing . | . . . . Highest Corruption . | . . . . Average Corruption . | . . . . Corruption Purged . | . . . . Corruption Blocked . | . . . . Overload Shots . | . . . . Overflow Damage . | . . . . Projectiles . | . . . . Explosions . | . . . . Melee . | . . . . Knockbacks . | . . . . Impact . | . . . . Kinetic . | . . . . Secondary . | . . . . Self-Inflicted Damage . | . . . . Shots . | . . . . Rammed . | . . . . Targets Rammed . | . . . . Kicked . | . . . . Crushed . | . . . . Highest Temperature . | . . . . Average Temperature . | . . . . Received Heat Transfer 111 | . 18 . 93 Siege Activations . | . . . . Robots Corrupted . | . . . . Combat Hostiles . | . . . . Parts Fried . | . . . . Impact Corruptions . | . . . . Robots Melted . | . . . . Combat Hostiles . | . . . . Parts Melted . | . . . . Heat Transferred . | . . . . Parts Sabotaged . | . . . . Parts Stolen . | . . . . Parts Stripped . | . . . . Power Chain Reactions . | . . . . Alert | -11 -10 -10 -10 ------- Run | Yrd Mat Min Sub Peak Influence 121 | 35 121 61 . Initial 46 | . 22 46 . Average 32 | 10 48 30 . Maximum Alert Level . | . . . . Low Security (%) 100 | 100 100 100 . Level 1 . | . . . . Level 2 . | . . . . Level 3 . | . . . . Level 4 . | . . . . Level 5 . | . . . . High Security . | . . . . Max Security . | . . . . Squads Dispatched . | . . . . Investigation . | . . . . Extermination . | . . . . Reinforcement . | . . . . Assault . | . . . . Garrison . | . . . . Intercept . | . . . . Searches Triggered . | . . . . Construction Impeded . | . . . . Haulers Reinforced . | . . . . Active Scanning Responses . | . . . . Cargo Convoy Interrupts . | . . . . Stealth | -11 -10 -10 -10 --------- Run | Yrd Mat Min Sub Distress Signals 1 | . 1 . . Communications Jammed . | . . . . Distress Signals . | . . . . Times Spotted 20 | . 5 2 13 Peak Tracking Total 7 | . 3 2 7 Tactical Retreats 2 | . 1 . 1 Traps | -11 -10 -10 -10 ------- Run | Yrd Mat Min Sub Traps Triggered 3 | . . . 3 Indirectly . | . . . . Trap Hack Attempts . | . . . . Triggered . | . . . . Disarmed . | . . . . Reprogrammed . | . . . . Reused . | . . . . Traps Extracted . | . . . . Installed . | . . . . Triggered . | . . . . Machines | -11 -10 -10 -10 ---------- Run | Yrd Mat Min Sub Machines Disabled . | . . . . Max in Single Turn . | . . . . Machines Repaired . | . . . . Machines Dismantled . | . . . . Machines Sabotaged . | . . . . Overloaded Fab Kills . | . . . . Hacking | -11 -10 -10 -10 --------- Run | Yrd Mat Min Sub Machines Accessed . | . . . . Terminals . | . . . . Fabricators . | . . . . Repair Stations . | . . . . Recycling Units . | . . . . Scanalyzers . | . . . . Garrison Access . | . . . . Total Hacks . | . . . . Successful . | . . . . Failed . | . . . . Catastrophic . | . . . . Database Lockouts . | . . . . Manual . | . . . . Terminals . | . . . . Fabricators . | . . . . Repair Stations . | . . . . Recycling Units . | . . . . Scanalyzers . | . . . . Garrison Access . | . . . . Terminal Hacks . | . . . . Fabricator Hacks . | . . . . Repair Station Hacks . | . . . . Recycling Unit Hacks . | . . . . Scanalyzer . | . . . . Garrison Access Hacks . | . . . . Unauthorized Hacks . | . . . . Terminals . | . . . . Fabricators . | . . . . Repair Stations . | . . . . Recycling Units . | . . . . Scanalyzers . | . . . . Garrison Access . | . . . . Data Cores Recovered . | . . . . Used . | . . . . Hacking Detections . | . . . . Full Trace Events . | . . . . Feedback Events . | . . . . Feedback Blocked . | . . . . Robot Schematics Acquired . | . . . . Robots Built . | . . . . Authchips . | . . . . Time . | . . . . Total Robot Build Rating . | . . . . Part Schematics Acquired . | . . . . Parts Built . | . . . . Authchips . | . . . . Time . | . . . . Total Part Build Rating . | . . . . Parts Repaired . | . . . . Time . | . . . . Parts Recycled . | . . . . Recycled Matter . | . . . . Retrieved Matter . | . . . . Retrieved Components . | . . . . Parts Scanalyzed . | . . . . Part Schematics Acquired . | . . . . Parts Damaged . | . . . . Bothacking | -11 -10 -10 -10 ------------ Run | Yrd Mat Min Sub Used RIF Installer . | . . . . Robots Hacked . | . . . . Non-combat . | . . . . Combat . | . . . . Robot Hacks Applied . | . . . . Relay Couplers Released . | . . . . Fabnet Peak Effective % . | . . . . Robots Rewired . | . . . . Allies Hacked . | . . . . Hacks Repelled . | . . . . Allies | -11 -10 -10 -10 -------- Run | Yrd Mat Min Sub Total Allies 2 | . . 2 . Largest Group 2 | . . 2 1 Highest-Rated Group 50 | . . 50 31 Highest-Rated Ally 31 | . . 31 31 Total Orders . | . . . . Ally Attacks 17 | . . 12 5 Total Damage 290 | . . 184 106 Kills 2 | . . 2 . Allies Corrupted . | . . . . Allies Melted . | . . . . Intel | -11 -10 -10 -10 ------- Run | Yrd Mat Min Sub Robot Analysis Total . | . . . . Derelict Logs Recovered 4 | . . 3 1 Drone Launches . | . . . . Drone Recoveries . | . . . . Exploration | -11 -10 -10 -10 ------------- Run | Yrd Mat Min Sub Turns Passed 2810 | 127 251 1256 1176 Spaces Moved 2202 | 68 197 796 1141 Core 1 | 1 . . . Treads . | . . . . Legs . | . . . . Wheels 2201 | 67 197 796 1141 Hover . | . . . . Flight . | . . . . Fastest Speed 50 | 50 80 95 95 Average Speed 94 | 86 91 95 95 Slowest Speed 125 | 90 95 95 125 Overloaded Moves . | . . . . Propulsion Burnouts . | . . . . Robots Hopped . | . . . . Cave-ins Triggered . | . . . . Exploration Rate (%) 47 | 3 23 102 62 Regions Visited 3 Branch Regions 2 Pre-discovered Areas 2 | . . 1 1 Known Exits Taken 2 | . 1 1 . Unknown Exits Taken 1 | 1 . . . Scrap Searched 3 | . . 1 2 Spaces Dug 3 | . . . 3 Terrain Destroyed 72 | . . . 72 Melee 3 | . . . 3 Projectile . | . . . . AOE 69 | . . . 69 Terrain Rammed . | . . . . Walls Destroyed . | . . . . Machines Disabled . | . . . . Actions | -11 -10 -10 -10 --------- Run | Yrd Mat Min Sub Total 2815 | 100 248 1270 1197 Wait 500 | . 33 448 19 Move 2199 | 67 196 795 1141 Hop . | . . . . Pick Up 26 | 4 5 11 6 Fast Attach 6 | 6 . . . Attach 6 | 1 . . 5 Detach . | . . . . Swap 10 | 2 4 1 3 Drop 6 | 2 1 2 1 Fire 54 | 18 9 13 14 Melee 8 | . . . 8 Ram . | . . . . Kick . | . . . . Crush . | . . . . Escape Stasis . | . . . . Rewire . | . . . . Trap . | . . . . Miscellaneous . | . . . . Route ------- -11/Scrapyard -10/Materials -10/Mines (discovered 3 exits: *Mat x2 / *Sub) -10/Subcaves (discovered 1 exit: *Mat) History --------- Turn | Location | Event 31 | -11/Scrapyard | Discovered new exit (range 12) 128 | -11/Scrapyard | Entered Materials 203 | -10/Materials | Discovered new exit (range 13) 309 | -10/Materials | Build established: Mutant 377 | -10/Materials | Identified exit to Mines 379 | -10/Materials | Entered Mines 417 | -10/Mines | Discovered new exit (range 8) 422 | -10/Mines | Identified exit to Materials 480 | -10/Mines | Learned Materials garrison access intel 481 | -10/Mines | Learned Materials terminal intel 961 | -10/Mines | Discovered exit to Materials (range 3) 1218 | -10/Mines | Discovered new exit (range 3) 1219 | -10/Mines | Identified exit to Subcaves 1514 | -10/Mines | Received a Rocket Launcher from a helpful Derelict 1635 | -10/Mines | Entered Subcaves 1635 | -10/Subcaves | Accompanied by 1 ally 1637 | -10/Subcaves | Ambushed by Subdwellers from Twisted Machinery 1640 | -10/Subcaves | Led the pair of lost Derelicts to an unsafe place 1698 | -10/Subcaves | Core integrity fell below 50% 1918 | -10/Subcaves | Learned Materials stockpile data 2015 | -10/Subcaves | Shifting Twisted Machinery released Battle Rifle 2019 | -10/Subcaves | Shifting Twisted Machinery released Mak. Axe 2099 | -10/Subcaves | A swath of the cavern ceiling suddenly collapsed 2196 | -10/Subcaves | Core integrity fell below 20% 2228 | -10/Subcaves | Learned location of Zion (-7) 2228 | -10/Subcaves | Met a Zionite searching for "candidates" 2344 | -10/Subcaves | Shifting Twisted Machinery released Flamer 2355 | -10/Subcaves | Shifting Twisted Machinery released Mak. Shrapnel Gun 2363 | -10/Subcaves | Discovered new exit (range 14) 2374 | -10/Subcaves | Identified exit to Materials 2811 | -10/Subcaves | Destroyed by KJ-GB8(R) with Subdweller Machine Gun Last Messages --------------- 02454_ Spikes shoot up from the floor. 02454_ Critical hit (Impale). 02454_ Rocket Launcher destroyed. 02458_ Triggered Piercing Trap. 02458_ Spikes shoot up from the floor. 02458_ Critical hit (Impale). 02458_ Wheel destroyed. 02492_ 9C-UFN(u) deconstructs Twisted Machinery. 02506_ Searching scrap... 02506_ Found Spk. Treads. 02506_ Found 34 Matter. 02507_ Acquired 34 matter. 02509_ Subatomizers dissect the Spk. Treads. 02510_ Acquired Spk. Treads. 02515_ 9C-UFN(u) deconstructs Twisted Machinery. 02641_ Acquired Sub. Shrapnel Launcher. 02677_ Acquired 22 matter. 02721_ Acquired 7 matter. 02785_ Wheel destroyed. 02811_ Ion Engine destroyed. Map ----- +----------------------------------------------------+ | ???????????????????????????????????????????????# | | ????????###????????????????????????????????????# | | ????????# ????????????????????????????????????# | | ????????# ???????????????????????????????????## | | ????????# #???????????????????????????????????# | | ????????# #??????????????????????????????????## | | ???????## ###?####???????????????????????????# | | ???????# ### #######??????????????????#### | | ???????# ## ## ##????????????????## | | ??# ## #????????????????# | | ?# ####?????????????## | | ????????# ## ##?#####??????# | | ???????## ## ### ##?????# ! | | ??????## ## ### ####### | | ?????## ## #?# ## ## | | ?????# ## ##?# | | ?????## "# ###?# | | ??????## #"###???# # ## | | ???????### ###?????# ## ### | | ????????## #???????# #### # #?### # # | | ???????## #???????# ##??## ## #??# #### # | | ???????# ##??########???###### #??## ### # | | ???????# #?## ## ##??????# #?## # # # | | ???????## ### ####???## ### | | ????????# ## ##??# ## | | ???# R @ #??## | | ???#### R #???# ## | | ??????# ### ##??# ### ##? | | ?????# ########??####???##### ####?? | | ?????## #???????????????????# #????? | | ??????# #####???????????????????# ##????? | | ??????# ????????????????????????# # #?????? | | ??????## ????????????????????????# ####?????? | | ???????## ????????????????????????# #????????? | | ????????### ????????????????????????# #????????? | | ??????????# ?????????????????????????# #????????? | | ?????????? ?????????????????????????## ##???????? | | ?????????????????????????????????????## #???????? | | ?????????????????????????????????????# ###?????? | | ?????????????????????????????????????## #?????? | | ?????????????????????????????????????# # ##?????? | | ?????????????????????????????????????#### #??????? | | ???????????????????????????????????????## ##?????? | | ??????????????????????????????????????## #?????? | | ?????????????????????????????????????## #?????? | | ????????????????????????????????????## #?????? | | ????????????????????????????????????# #?????? | | ????????????????????????????????????#### #?????? | | ??????????????????????????????????????## ##????? | | ?????????????????????????????????????## #????? | +----------------------------------------------------+ Best States ------------- Heat Dissipation 25 Energy Generation 10 Energy Capacity 250 Matter Stores 300 Matter Capacity 300 Sight Range 16 Terrain Scan Range 16 Terrain Scan Density 10 Evasion (%) 44 Item Schematics ----------------- None Robot Schematics ------------------ None Fabricated ------------ Nothing Alien Tech Used ----------------- None Achievements -------------- None Challenges ------------ None Game ------ Seed ShadeDecoyProcessor Manual? 0 Play Time 00:25:34 Cumulative 31.9 hours Start 2024.04.10 @ 15:14:21 End 2024.04.10 @ 15:38:57 Sessions 1 Manual Loads 0 Difficulty Rogue Special Mode None Game No. 33 Rogue 33 Adventurer 0 Explorer 0 Win Type - Total 0 Types 0/0/0/0/0/0/0/0/0 Lore% 23 Gallery% 32 Achievement% 23 Wizard Run 0 Options --------- Layout 0 ASCII 0 Keyboard 0 Movement Mouse Keybinds 0 Fullscreen 1 Font 24/Smallcaps Map View 183x50 Zoom Use 0% Tactical HUD 1 Map Filters NONE Filters NONE Steam 0 RUN: 0391faf8-8ba0-4f2f-8cea-42040870fd57